[Event "Late-Titled-Tuesday-Blitz-February-06-2024"]
[Site "Chess.com"]
[Date "2024.02.06"]
[Round "9"]
[White "Oleksandr_Bortnyk"]
[Black "Ticondriul"]
[Result "1-0"]
[WhiteElo "3067"]
[BlackElo "2746"]
[TimeControl "180+1"]
[EndTime "15:44:41 PST"]
[Termination "Oleksandr_Bortnyk won on time"]

1. d4 {[%clk 0:03:00.9]} 1... Nf6 {[%clk 0:02:59.5]} 2. Nc3 {[%clk 0:03:01.5]}
2... d5 {[%clk 0:02:59]} 3. Bf4 {[%clk 0:03:02.3]} 3... a6 {[%clk 0:02:46]} 4.
e3 {[%clk 0:03:02.5]} 4... Bf5 {[%clk 0:02:43.4]} 5. Nf3 {[%clk 0:03:02.4]} 5...
e6 {[%clk 0:02:39.3]} 6. Ne5 {[%clk 0:03:02.7]} 6... Nbd7 {[%clk 0:02:28.3]} 7.
g4 {[%clk 0:03:03]} 7... Bg6 {[%clk 0:02:28.5]} 8. h4 {[%clk 0:03:03.2]} 8...
Nxe5 {[%clk 0:02:14.9]} 9. dxe5 {[%clk 0:03:04.1]} 9... Ne4 {[%clk 0:02:01.5]}
10. Nxe4 {[%clk 0:03:04.3]} 10... Bxe4 {[%clk 0:02:01.6]} 11. f3 {[%clk
0:03:04.5]} 11... Be7 {[%clk 0:01:57.5]} 12. fxe4 {[%clk 0:03:04.4]} 12... Bxh4+
{[%clk 0:01:57.4]} 13. Ke2 {[%clk 0:03:04.4]} 13... g5 {[%clk 0:01:55.7]} 14.
Bh2 {[%clk 0:03:04.6]} 14... Qd7 {[%clk 0:01:54.2]} 15. Bg2 {[%clk 0:03:03.1]}
15... O-O-O {[%clk 0:01:50.7]} 16. Qd3 {[%clk 0:03:02.8]} 16... Kb8 {[%clk
0:01:48.1]} 17. Rhf1 {[%clk 0:03:02.4]} 17... h5 {[%clk 0:01:47.6]} 18. gxh5
{[%clk 0:03:02.9]} 18... Rxh5 {[%clk 0:01:47.3]} 19. Rad1 {[%clk 0:03:01.4]}
19... c6 {[%clk 0:01:45.4]} 20. exd5 {[%clk 0:03:02]} 20... cxd5 {[%clk
0:01:45.7]} 21. Bxd5 {[%clk 0:03:00.9]} 21... g4 {[%clk 0:01:42]} 22. Be4 {[%clk
0:02:59.6]} 22... Qa4 {[%clk 0:01:39.3]} 23. b3 {[%clk 0:02:46.6]} 23... Qb4
{[%clk 0:01:34.8]} 24. Qc4 {[%clk 0:02:44.2]} 24... Qxc4+ {[%clk 0:01:32.9]} 25.
bxc4 {[%clk 0:02:45.1]} 25... Rxd1 {[%clk 0:01:33.5]} 26. Rxd1 {[%clk
0:02:40.1]} 26... g3 {[%clk 0:01:33.8]} 27. Bg1 {[%clk 0:02:40.4]} 27... Rxe5
{[%clk 0:01:33.7]} 28. Bg2 {[%clk 0:02:38.7]} 28... Kc7 {[%clk 0:01:29.3]} 29.
e4 {[%clk 0:02:37.9]} 29... Ra5 {[%clk 0:01:28.7]} 30. Bd4 {[%clk 0:02:30.4]}
30... Rxa2 {[%clk 0:01:27.9]} 31. Be5+ {[%clk 0:02:25.5]} 31... Kc6 {[%clk
0:01:27.5]} 32. Kd3 {[%clk 0:02:25.1]} 32... Ra3+ {[%clk 0:01:22.8]} 33. Bc3
{[%clk 0:02:25.3]} 33... b5 {[%clk 0:01:17]} 34. e5+ {[%clk 0:02:22.7]} 34...
Kc5 {[%clk 0:01:17.4]} 35. cxb5 {[%clk 0:02:23.3]} 35... axb5 {[%clk 0:01:17.8]}
36. Ra1 {[%clk 0:02:23.4]} 36... b4 {[%clk 0:01:13.7]} 37. Rxa3 {[%clk
0:02:23.1]} 37... bxa3 {[%clk 0:01:14.2]} 38. Bd4+ {[%clk 0:02:20.7]} 38... Kb4
{[%clk 0:01:14.1]} 39. c4 {[%clk 0:02:18]} 39... Be7 {[%clk 0:01:07.4]} 40. Bf3
{[%clk 0:02:00]} 40... a2 {[%clk 0:01:01.4]} 41. Bc3+ {[%clk 0:01:57.2]} 41...
Kb3 {[%clk 0:01:01.4]} 42. Bd1+ {[%clk 0:01:36.7]} 42... Ka3 {[%clk 0:01:01.1]}
43. Bf3 {[%clk 0:01:33.6]} 43... Bc5 {[%clk 0:00:59.3]} 44. Kc2 {[%clk
0:01:31.2]} 44... Bb4 {[%clk 0:00:49.7]} 45. Bb2+ {[%clk 0:01:29.7]} 45... Ka4
{[%clk 0:00:50]} 46. Bc6+ {[%clk 0:01:29.1]} 46... Ka5 {[%clk 0:00:50.3]} 47.
Kb3 {[%clk 0:01:27.9]} 47... Bc5 {[%clk 0:00:42.2]} 48. Bc3+ {[%clk 0:01:25.2]}
48... Kb6 {[%clk 0:00:41.9]} 49. Bf3 {[%clk 0:01:22.2]} 49... Be3 {[%clk
0:00:32.7]} 50. Kxa2 {[%clk 0:01:22]} 50... Kc5 {[%clk 0:00:33.1]} 51. Kb3
{[%clk 0:01:22.6]} 51... Bf4 {[%clk 0:00:22.4]} 52. Bg2 {[%clk 0:01:19.7]} 52...
Be3 {[%clk 0:00:16]} 53. Bf1 {[%clk 0:01:19.5]} 53... Bf2 {[%clk 0:00:16.4]} 54.
Kc2 {[%clk 0:01:18.4]} 54... Bd4 {[%clk 0:00:14]} 55. Kd3 {[%clk 0:01:16.7]}
55... Bf2 {[%clk 0:00:12.4]} 56. Bg2 {[%clk 0:01:05.2]} 56... Bg1 {[%clk
0:00:11.1]} 57. Ba5 {[%clk 0:01:04.9]} 57... Bf2 {[%clk 0:00:08.4]} 58. Bc7
{[%clk 0:00:59.3]} 58... Bg1 {[%clk 0:00:02.7]} 59. Bd6+ {[%clk 0:00:59.8]}
59... Kb6 {[%clk 0:00:03.1]} 60. Ke4 {[%clk 0:00:59]} 60... Bf2 {[%clk
0:00:01.7]} 61. Kf4 {[%clk 0:00:59.6]} 1-0

[Event "Late-Titled-Tuesday-Blitz-February-06-2024"]
[Site "Chess.com"]
[Date "2024.02.06"]
[Round "9"]
[White "Ducke13"]
[Black "ImportedItalianMaple"]
[Result "1-0"]
[WhiteElo "2322"]
[BlackElo "2486"]
[TimeControl "180+1"]
[EndTime "15:44:41 PST"]
[Termination "Ducke13 won on time"]

1. d4 {[%clk 0:02:57.5]} 1... g6 {[%clk 0:03:00]} 2. g3 {[%clk 0:02:57.5]} 2...
Bg7 {[%clk 0:02:59.8]} 3. Bg2 {[%clk 0:02:58.1]} 3... d6 {[%clk 0:02:48.7]} 4.
e4 {[%clk 0:02:57.9]} 4... Nc6 {[%clk 0:02:39.3]} 5. Ne2 {[%clk 0:02:55]} 5...
e5 {[%clk 0:02:35.6]} 6. c3 {[%clk 0:02:49.6]} 6... Nge7 {[%clk 0:02:19.4]} 7.
d5 {[%clk 0:02:48]} 7... Nb8 {[%clk 0:02:18.8]} 8. c4 {[%clk 0:02:47.6]} 8...
O-O {[%clk 0:02:18]} 9. Nbc3 {[%clk 0:02:48]} 9... f5 {[%clk 0:02:13.2]} 10. O-O
{[%clk 0:02:44.9]} 10... a5 {[%clk 0:02:10]} 11. b3 {[%clk 0:02:36.3]} 11... Na6
{[%clk 0:02:09.7]} 12. a3 {[%clk 0:02:36.2]} 12... Nc5 {[%clk 0:02:05.7]} 13.
Rb1 {[%clk 0:02:36.7]} 13... h6 {[%clk 0:01:43.1]} 14. b4 {[%clk 0:02:34.2]}
14... axb4 {[%clk 0:01:43.6]} 15. axb4 {[%clk 0:02:35.1]} 15... Nxe4 {[%clk
0:01:43.8]} 16. Nxe4 {[%clk 0:02:33.8]} 16... fxe4 {[%clk 0:01:44.2]} 17. Nc3
{[%clk 0:02:33.6]} 17... Nf5 {[%clk 0:01:35.8]} 18. Nxe4 {[%clk 0:02:29.2]}
18... Nd4 {[%clk 0:01:34.3]} 19. c5 {[%clk 0:02:29.6]} 19... Ra2 {[%clk
0:01:25.5]} 20. Rb2 {[%clk 0:02:24.9]} 20... Ra3 {[%clk 0:01:01]} 21. Be3 {[%clk
0:01:47.7]} 21... Kh7 {[%clk 0:00:55]} 22. Rd2 {[%clk 0:01:41.1]} 22... Bf5
{[%clk 0:00:43.1]} 23. cxd6 {[%clk 0:01:34.7]} 23... cxd6 {[%clk 0:00:42.7]} 24.
h4 {[%clk 0:01:32.2]} 24... h5 {[%clk 0:00:16.1]} 25. Ng5+ {[%clk 0:01:23.7]}
25... Kg8 {[%clk 0:00:16.7]} 26. Qc1 {[%clk 0:00:43]} 26... Ra4 {[%clk
0:00:11.1]} 27. Rb2 {[%clk 0:00:14.9]} 27... Qb6 {[%clk 0:00:10]} 28. Qd2 {[%clk
0:00:11.4]} 28... Rfa8 {[%clk 0:00:06.2]} 29. Rc1 {[%clk 0:00:11]} 29... Ra1
{[%clk 0:00:05.2]} 30. Kh2 {[%clk 0:00:10.6]} 30... Rxc1 {[%clk 0:00:05.4]} 31.
Qxc1 {[%clk 0:00:11.5]} 31... Ra4 {[%clk 0:00:03.6]} 32. Qd2 {[%clk 0:00:11.2]}
32... Qb5 {[%clk 0:00:02.6]} 33. Be4 {[%clk 0:00:10.4]} 33... Bxe4 {[%clk
0:00:02.1]} 34. Nxe4 {[%clk 0:00:10.9]} 34... Bf8 {[%clk 0:00:01.8]} 35. Bxd4
{[%clk 0:00:10.5]} 35... exd4 {[%clk 0:00:02.7]} 36. Qxd4 {[%clk 0:00:10.9]}
36... Bg7 {[%clk 0:00:02.1]} 37. Nf6+ {[%clk 0:00:10.6]} 1-0

[Event "Late-Titled-Tuesday-Blitz-February-06-2024"]
[Site "Chess.com"]
[Date "2024.02.06"]
[Round "9"]
[White "KantorGergely"]
[Black "platy3"]
[Result "0-1"]
[WhiteElo "2768"]
[BlackElo "2942"]
[TimeControl "180+1"]
[EndTime "15:44:42 PST"]
[Termination "platy3 won on time"]

1. Nf3 {[%clk 0:02:57.6]} 1... Nf6 {[%clk 0:02:59.7]} 2. c4 {[%clk 0:02:56.3]}
2... c5 {[%clk 0:02:57.4]} 3. g3 {[%clk 0:02:54.3]} 3... g6 {[%clk 0:02:55.9]}
4. Bg2 {[%clk 0:02:54.5]} 4... Bg7 {[%clk 0:02:56.6]} 5. O-O {[%clk 0:02:54.9]}
5... O-O {[%clk 0:02:57.3]} 6. Nc3 {[%clk 0:02:54.6]} 6... Nc6 {[%clk
0:02:55.4]} 7. d4 {[%clk 0:02:51.8]} 7... cxd4 {[%clk 0:02:56]} 8. Nxd4 {[%clk
0:02:52]} 8... Qa5 {[%clk 0:02:56.5]} 9. h3 {[%clk 0:02:50.6]} 9... d6 {[%clk
0:02:52.6]} 10. Nb3 {[%clk 0:02:38.5]} 10... Qh5 {[%clk 0:02:51.9]} 11. e3
{[%clk 0:02:38.8]} 11... Qxd1 {[%clk 0:02:47.4]} 12. Rxd1 {[%clk 0:02:38.9]}
12... Be6 {[%clk 0:02:48]} 13. Nd5 {[%clk 0:02:26.3]} 13... Rfc8 {[%clk
0:02:46.3]} 14. Bd2 {[%clk 0:02:24.2]} 14... Nd7 {[%clk 0:02:42.9]} 15. Rab1
{[%clk 0:02:09.8]} 15... a5 {[%clk 0:02:30.8]} 16. Nd4 {[%clk 0:01:52.9]} 16...
Bxd5 {[%clk 0:01:34.8]} 17. Bxd5 {[%clk 0:01:50.7]} 17... Nb6 {[%clk 0:01:29.8]}
18. Nb5 {[%clk 0:01:29.3]} 18... Nxd5 {[%clk 0:01:25.1]} 19. cxd5 {[%clk
0:01:29.2]} 19... Nb4 {[%clk 0:01:25.8]} 20. e4 {[%clk 0:00:23.8]} 20... Nxa2
{[%clk 0:01:22.5]} 21. Ra1 {[%clk 0:00:22.9]} 21... Nb4 {[%clk 0:01:22.1]} 22.
Ra4 {[%clk 0:00:17.7]} 22... Nd3 {[%clk 0:01:16.8]} 23. Rda1 {[%clk 0:00:14]}
23... Nc5 {[%clk 0:01:09.9]} 24. Rc4 {[%clk 0:00:10.3]} 24... Nb3 {[%clk
0:01:09.2]} 25. Rxc8+ {[%clk 0:00:09.9]} 25... Rxc8 {[%clk 0:01:10.1]} 26. Rd1
{[%clk 0:00:09.6]} 26... Bxb2 {[%clk 0:01:08.4]} 27. Be3 {[%clk 0:00:09.4]}
27... a4 {[%clk 0:01:02.9]} 28. Rb1 {[%clk 0:00:09.3]} 28... Rc2 {[%clk
0:01:03.6]} 29. Kf1 {[%clk 0:00:06.6]} 29... Nc5 {[%clk 0:00:57.6]} 30. Bxc5
{[%clk 0:00:05.5]} 30... dxc5 {[%clk 0:00:57.5]} 31. Ke1 {[%clk 0:00:05]} 31...
a3 {[%clk 0:00:56.9]} 32. Nxa3 {[%clk 0:00:04.6]} 32... Bxa3 {[%clk 0:00:57.1]}
33. Rxb7 {[%clk 0:00:04.7]} 33... c4 {[%clk 0:00:56.7]} 34. e5 {[%clk 0:00:04]}
34... c3 {[%clk 0:00:54.7]} 35. f3 {[%clk 0:00:01.7]} 35... Rh2 {[%clk
0:00:52.8]} 36. Kf1 {[%clk 0:00:01.5]} 36... c2 {[%clk 0:00:52.7]} 37. Kg1
{[%clk 0:00:01.9]} 37... Rd2 {[%clk 0:00:51.3]} 38. Rb8+ {[%clk 0:00:02]} 38...
Kg7 {[%clk 0:00:50.9]} 39. Rc8 {[%clk 0:00:02.6]} 39... h6 {[%clk 0:00:47.2]}
40. f4 {[%clk 0:00:02.4]} 40... h5 {[%clk 0:00:46.9]} 41. h4 {[%clk 0:00:02.9]}
41... Kh7 {[%clk 0:00:46.5]} 42. Rc7 {[%clk 0:00:02.7]} 42... Kg8 {[%clk
0:00:40.7]} 43. Rc8+ {[%clk 0:00:02.3]} 43... Kg7 {[%clk 0:00:41.2]} 44. Rc7
{[%clk 0:00:02.7]} 44... c1=R+ {[%clk 0:00:39.4]} 45. Rxc1 {[%clk 0:00:02.4]}
45... Bxc1 {[%clk 0:00:39.8]} 46. Kf1 {[%clk 0:00:02.9]} 46... Bb2 {[%clk
0:00:36.6]} 47. Kg1 {[%clk 0:00:02.8]} 47... Bxe5 {[%clk 0:00:36.4]} 48. fxe5
{[%clk 0:00:02.8]} 48... Kf8 {[%clk 0:00:35.4]} 49. Kf1 {[%clk 0:00:02.7]} 49...
f5 {[%clk 0:00:34.8]} 0-1

[Event "Late-Titled-Tuesday-Blitz-February-06-2024"]
[Site "Chess.com"]
[Date "2024.02.06"]
[Round "9"]
[White "yaguigor"]
[Black "ccccvhhhj"]
[Result "1-0"]
[WhiteElo "2712"]
[BlackElo "2483"]
[TimeControl "180+1"]
[EndTime "15:44:54 PST"]
[Termination "yaguigor won on time"]

1. Nf3 {[%clk 0:03:00.9]} 1... Nc6 {[%clk 0:02:59.5]} 2. e4 {[%clk 0:02:59]}
2... e5 {[%clk 0:02:53.7]} 3. Bb5 {[%clk 0:02:58.1]} 3... Nge7 {[%clk
0:02:53.7]} 4. O-O {[%clk 0:02:56.3]} 4... Ng6 {[%clk 0:02:53.6]} 5. c3 {[%clk
0:02:55.2]} 5... Be7 {[%clk 0:02:48]} 6. d4 {[%clk 0:02:54.5]} 6... O-O {[%clk
0:02:38.1]} 7. Bxc6 {[%clk 0:02:45.6]} 7... dxc6 {[%clk 0:02:37.4]} 8. Nxe5
{[%clk 0:02:46.3]} 8... Nxe5 {[%clk 0:02:36.8]} 9. dxe5 {[%clk 0:02:46]} 9...
Qe8 {[%clk 0:02:27.9]} 10. Be3 {[%clk 0:02:40.8]} 10... f6 {[%clk 0:02:16.5]}
11. exf6 {[%clk 0:02:38.6]} 11... Bxf6 {[%clk 0:02:17.4]} 12. f3 {[%clk
0:02:37.6]} 12... Be5 {[%clk 0:02:13.2]} 13. f4 {[%clk 0:02:34.5]} 13... Bd6
{[%clk 0:02:11.4]} 14. Nd2 {[%clk 0:02:27.7]} 14... Kh8 {[%clk 0:02:11.1]} 15.
e5 {[%clk 0:02:21.3]} 15... Be7 {[%clk 0:02:08.9]} 16. Qe2 {[%clk 0:02:12.7]}
16... Bf5 {[%clk 0:02:08.5]} 17. Nb3 {[%clk 0:02:08.1]} 17... Qg6 {[%clk
0:01:59.7]} 18. Qf2 {[%clk 0:01:46.4]} 18... Rad8 {[%clk 0:01:47.8]} 19. Bc5
{[%clk 0:01:43.9]} 19... Bxc5 {[%clk 0:01:25.6]} 20. Nxc5 {[%clk 0:01:42.9]}
20... b6 {[%clk 0:01:25.4]} 21. Nb3 {[%clk 0:01:42.2]} 21... Be4 {[%clk
0:01:21.6]} 22. Qg3 {[%clk 0:01:38.7]} 22... Qf5 {[%clk 0:01:08.9]} 23. Nd4
{[%clk 0:01:33.1]} 23... Qf7 {[%clk 0:01:07.3]} 24. Qe3 {[%clk 0:01:12.6]} 24...
Bd5 {[%clk 0:01:01.4]} 25. f5 {[%clk 0:01:11.7]} 25... Rde8 {[%clk 0:00:58]} 26.
e6 {[%clk 0:01:02.6]} 26... Qf6 {[%clk 0:00:57.5]} 27. b3 {[%clk 0:00:57.7]}
27... b5 {[%clk 0:00:32]} 28. Rae1 {[%clk 0:00:53.5]} 28... h6 {[%clk
0:00:29.2]} 29. Qe5 {[%clk 0:00:43.5]} 29... Qg5 {[%clk 0:00:25.6]} 30. Qg3
{[%clk 0:00:44.1]} 30... Qf6 {[%clk 0:00:25.6]} 31. Qxc7 {[%clk 0:00:43.2]}
31... b4 {[%clk 0:00:23.3]} 32. Qe5 {[%clk 0:00:41.3]} 32... bxc3 {[%clk
0:00:20.5]} 33. Qxf6 {[%clk 0:00:38.9]} 33... Rxf6 {[%clk 0:00:21.4]} 34. Rc1
{[%clk 0:00:37.8]} 34... Be4 {[%clk 0:00:18.4]} 35. Rxc3 {[%clk 0:00:36.8]}
35... Rd8 {[%clk 0:00:18.9]} 36. Nxc6 {[%clk 0:00:21.7]} 36... Rc8 {[%clk
0:00:17.7]} 37. e7 {[%clk 0:00:21.1]} 37... Rfxc6 {[%clk 0:00:14.6]} 38. Re3
{[%clk 0:00:19.4]} 38... Bd5 {[%clk 0:00:03.6]} 39. e8=Q+ {[%clk 0:00:18.7]}
39... Rxe8 {[%clk 0:00:04.3]} 40. Rxe8+ {[%clk 0:00:18.7]} 40... Kh7 {[%clk
0:00:04]} 41. h3 {[%clk 0:00:18.2]} 41... Rc2 {[%clk 0:00:03]} 42. Rf2 {[%clk
0:00:18.6]} 42... Rc1+ {[%clk 0:00:02.9]} 43. Kh2 {[%clk 0:00:19.3]} 43... Rb1
{[%clk 0:00:01.2]} 44. Re7 {[%clk 0:00:18.7]} 44... Be4 {[%clk 0:00:01.5]} 45.
f6 {[%clk 0:00:18.3]} 45... Bg6 {[%clk 0:00:01.6]} 46. Rxg7+ {[%clk 0:00:17.8]}
46... Kh8 {[%clk 0:00:02.3]} 47. Rxg6 {[%clk 0:00:18.7]} 1-0

[Event "Late-Titled-Tuesday-Blitz-February-06-2024"]
[Site "Chess.com"]
[Date "2024.02.06"]
[Round "9"]
[White "FairChess_on_YouTube"]
[Black "Jospem"]
[Result "1-0"]
[WhiteElo "3060"]
[BlackElo "3038"]
[TimeControl "180+1"]
[EndTime "15:44:55 PST"]
[Termination "FairChess_on_YouTube won by checkmate"]

1. e4 {[%clk 0:03:00.9]} 1... e5 {[%clk 0:02:59.3]} 2. Nf3 {[%clk 0:03:00.7]}
2... Nc6 {[%clk 0:02:59.8]} 3. Bb5 {[%clk 0:03:00.8]} 3... a6 {[%clk 0:02:59.9]}
4. Ba4 {[%clk 0:03:00.6]} 4... Nf6 {[%clk 0:03:00.2]} 5. O-O {[%clk 0:03:00.9]}
5... Be7 {[%clk 0:03:00.5]} 6. Bxc6 {[%clk 0:03:00]} 6... dxc6 {[%clk
0:02:59.9]} 7. d3 {[%clk 0:03:00.6]} 7... Bg4 {[%clk 0:02:52.9]} 8. h3 {[%clk
0:02:59.9]} 8... Bxf3 {[%clk 0:02:52.8]} 9. Qxf3 {[%clk 0:02:59.7]} 9... O-O
{[%clk 0:02:49.7]} 10. Nd2 {[%clk 0:02:59.8]} 10... Nd7 {[%clk 0:02:45.3]} 11.
Nc4 {[%clk 0:02:59.1]} 11... Re8 {[%clk 0:02:27.7]} 12. Qg3 {[%clk 0:02:56.9]}
12... Bh4 {[%clk 0:01:56.3]} 13. Qg4 {[%clk 0:02:56.3]} 13... Bf6 {[%clk
0:01:57]} 14. Ne3 {[%clk 0:02:40.3]} 14... g6 {[%clk 0:01:51.3]} 15. Bd2 {[%clk
0:02:28.5]} 15... Bg7 {[%clk 0:01:49.1]} 16. Bc3 {[%clk 0:02:22.4]} 16... Nf6
{[%clk 0:01:48.7]} 17. Qf3 {[%clk 0:02:16.4]} 17... Re6 {[%clk 0:01:37.1]} 18.
Rad1 {[%clk 0:02:13.8]} 18... Qe7 {[%clk 0:01:35.8]} 19. g3 {[%clk 0:02:03.7]}
19... b5 {[%clk 0:01:30.9]} 20. Ng4 {[%clk 0:01:55.1]} 20... Nd7 {[%clk
0:01:21.8]} 21. Bd2 {[%clk 0:01:48.1]} 21... Rf8 {[%clk 0:01:16.6]} 22. Ne3
{[%clk 0:01:46.6]} 22... Qc5 {[%clk 0:01:03]} 23. Rc1 {[%clk 0:01:41.4]} 23...
Rfe8 {[%clk 0:00:59.5]} 24. h4 {[%clk 0:01:37.6]} 24... h5 {[%clk 0:00:59.4]}
25. Kg2 {[%clk 0:01:31.1]} 25... Qd6 {[%clk 0:00:59.7]} 26. Rh1 {[%clk
0:01:28.4]} 26... c5 {[%clk 0:00:57.1]} 27. b3 {[%clk 0:01:27.2]} 27... c6
{[%clk 0:00:55.9]} 28. Rcg1 {[%clk 0:01:25]} 28... Nf6 {[%clk 0:00:46.3]} 29.
Kf1 {[%clk 0:01:23.5]} 29... Qd4 {[%clk 0:00:46.6]} 30. g4 {[%clk 0:01:19.6]}
30... hxg4 {[%clk 0:00:47.1]} 31. Nxg4 {[%clk 0:01:18.9]} 31... Nxg4 {[%clk
0:00:47.7]} 32. Rxg4 {[%clk 0:01:05.2]} 32... Rf6 {[%clk 0:00:41.5]} 33. Qe2
{[%clk 0:01:03.2]} 33... c4 {[%clk 0:00:40.1]} 34. Be3 {[%clk 0:00:52.6]} 34...
cxd3 {[%clk 0:00:39.6]} 35. cxd3 {[%clk 0:00:50.9]} 35... Qc3 {[%clk 0:00:37.8]}
36. h5 {[%clk 0:00:49.6]} 36... Rd6 {[%clk 0:00:38.1]} 37. hxg6 {[%clk
0:00:42.5]} 37... fxg6 {[%clk 0:00:39]} 38. Kg2 {[%clk 0:00:35.2]} 38... Ree6
{[%clk 0:00:33.8]} 39. Rg3 {[%clk 0:00:28.9]} 39... Qxd3 {[%clk 0:00:30.4]} 40.
Qg4 {[%clk 0:00:29]} 40... Qc2 {[%clk 0:00:28.4]} 41. Rf3 {[%clk 0:00:25.5]}
41... c5 {[%clk 0:00:15]} 42. Bg5 {[%clk 0:00:16.5]} 42... c4 {[%clk 0:00:10.6]}
43. Qh3 {[%clk 0:00:15.2]} 43... Rf6 {[%clk 0:00:06.6]} 44. Bxf6 {[%clk
0:00:15.4]} 44... Bxf6 {[%clk 0:00:07.5]} 45. Qh7+ {[%clk 0:00:13.9]} 45... Kf8
{[%clk 0:00:08]} 46. Qxg6 {[%clk 0:00:14.2]} 46... Ke7 {[%clk 0:00:08]} 47. Rh7+
{[%clk 0:00:14.2]} 47... Kd8 {[%clk 0:00:08.3]} 48. Qg8# {[%clk 0:00:14.6]} 1-0

[Event "Late-Titled-Tuesday-Blitz-February-06-2024"]
[Site "Chess.com"]
[Date "2024.02.06"]
[Round "9"]
[White "campochess"]
[Black "BebeBonito2022"]
[Result "1/2-1/2"]
[WhiteElo "2125"]
[BlackElo "2324"]
[TimeControl "180+1"]
[EndTime "15:45:00 PST"]
[Termination "Game drawn by repetition"]

1. d4 {[%clk 0:02:58.4]} 1... Nf6 {[%clk 0:02:59.9]} 2. Bg5 {[%clk 0:02:58.2]}
2... d5 {[%clk 0:02:59.7]} 3. Nd2 {[%clk 0:02:56.9]} 3... c5 {[%clk 0:02:56.4]}
4. e3 {[%clk 0:02:56.1]} 4... cxd4 {[%clk 0:02:53.6]} 5. exd4 {[%clk 0:02:55.7]}
5... Bf5 {[%clk 0:02:53.3]} 6. Bb5+ {[%clk 0:02:50.3]} 6... Nc6 {[%clk
0:02:53.2]} 7. Ngf3 {[%clk 0:02:50.2]} 7... Qb6 {[%clk 0:02:52.9]} 8. a4 {[%clk
0:02:46.3]} 8... a6 {[%clk 0:02:51.3]} 9. Bxc6+ {[%clk 0:02:45.6]} 9... bxc6
{[%clk 0:02:50.3]} 10. Nb3 {[%clk 0:02:41.2]} 10... Ne4 {[%clk 0:02:43.7]} 11.
Be3 {[%clk 0:02:34.4]} 11... e6 {[%clk 0:02:41.6]} 12. O-O {[%clk 0:02:33.3]}
12... a5 {[%clk 0:02:37.2]} 13. Rb1 {[%clk 0:02:29.4]} 13... Bd6 {[%clk
0:02:33.1]} 14. Ne5 {[%clk 0:02:27.5]} 14... f6 {[%clk 0:01:52.4]} 15. Nd3
{[%clk 0:02:24.3]} 15... O-O {[%clk 0:01:42.6]} 16. f3 {[%clk 0:02:23.7]} 16...
Ng5 {[%clk 0:01:41]} 17. Nbc5 {[%clk 0:02:10]} 17... Rae8 {[%clk 0:01:34.1]} 18.
b4 {[%clk 0:02:09.1]} 18... axb4 {[%clk 0:01:30.5]} 19. Rxb4 {[%clk 0:02:08.5]}
19... Qa7 {[%clk 0:01:11.3]} 20. Rb7 {[%clk 0:02:03.1]} 20... Qa8 {[%clk
0:01:11.5]} 21. Qb1 {[%clk 0:01:57.5]} 21... Rb8 {[%clk 0:01:08.9]} 22. Qb6
{[%clk 0:01:38.5]} 22... Rxb7 {[%clk 0:01:07]} 23. Nxb7 {[%clk 0:01:37.9]} 23...
Rb8 {[%clk 0:01:01.9]} 24. Ndc5 {[%clk 0:01:37.7]} 24... Bxc5 {[%clk 0:00:46.2]}
25. Qxc5 {[%clk 0:01:20.6]} 25... Qxb7 {[%clk 0:00:43.6]} 26. g4 {[%clk
0:01:11.1]} 26... Bg6 {[%clk 0:00:22.3]} 27. h4 {[%clk 0:01:11]} 27... Nxf3+
{[%clk 0:00:22.7]} 28. Rxf3 {[%clk 0:01:09.9]} 28... Be4 {[%clk 0:00:23]} 29.
Rf1 {[%clk 0:01:04.3]} 29... Qc7 {[%clk 0:00:16.7]} 30. Bf4 {[%clk 0:01:02.2]}
30... e5 {[%clk 0:00:17.1]} 31. dxe5 {[%clk 0:01:00.5]} 31... fxe5 {[%clk
0:00:17.5]} 32. Bg3 {[%clk 0:01:00.6]} 32... Qd7 {[%clk 0:00:14.7]} 33. Kh2
{[%clk 0:00:33]} 33... Qxg4 {[%clk 0:00:14.4]} 34. Qd6 {[%clk 0:00:32.1]} 34...
Re8 {[%clk 0:00:08.1]} 35. Qxc6 {[%clk 0:00:30.7]} 35... h6 {[%clk 0:00:05.8]}
36. Qxe8+ {[%clk 0:00:29.2]} 36... Kh7 {[%clk 0:00:05.9]} 37. Qxe5 {[%clk
0:00:29.2]} 37... Qe2+ {[%clk 0:00:05.6]} 38. Rf2 {[%clk 0:00:29.3]} 38... Qd1
{[%clk 0:00:06.2]} 39. Rg2 {[%clk 0:00:25.6]} 39... Qf1 {[%clk 0:00:04.4]} 40.
Rg1 {[%clk 0:00:20]} 40... Qe2+ {[%clk 0:00:04.8]} 41. Kh3 {[%clk 0:00:20.1]}
41... Qf3 {[%clk 0:00:03.6]} 42. Qf4 {[%clk 0:00:19.2]} 42... Bf5+ {[%clk
0:00:03.6]} 43. Kh2 {[%clk 0:00:19.1]} 43... Qe2+ {[%clk 0:00:03.9]} 44. Qf2
{[%clk 0:00:18.9]} 44... Qg4 {[%clk 0:00:03.7]} 45. Qg2 {[%clk 0:00:18.1]} 45...
Be4 {[%clk 0:00:02]} 46. Qf2 {[%clk 0:00:18.2]} 46... Bf5 {[%clk 0:00:01.7]} 47.
Qg2 {[%clk 0:00:18.1]} 47... Be4 {[%clk 0:00:02.3]} 48. Qf2 {[%clk 0:00:18.3]}
48... Bf5 {[%clk 0:00:02.5]} 1/2-1/2